fUST/lending_fUST_20240429
["ID","MTS","AMOUNT","RATE_DAILY","PERIOD"]
[324857901,1714375834527,-387.17618278,0.00013698,2]
[324857902,1714375834539,-594.77882234,0.00013698,2]
[324857903,1714375834548,-500.0,0.00013698,2]
[324857904,1714375834558,-500.0,0.00013698,2]
[324857905,1714375834567,-500.0,0.00013698,2]
[324857906,1714375834577,-500.0,0.00013698,2]
[324857907,1714375834586,-500.0,0.00013698,2]
[324857908,1714375834597,-500.0,0.00013698,2]
[324857909,1714375834606,-500.0,0.00013698,2]
[324857910,1714375834616,-500.0,0.00013698,2]
[324857911,1714375834625,-500.0,0.00013698,2]
[324857912,1714375834635,-504.01309128,0.00013698,2]
[324857913,1714375834644,-500.0,0.00013698,2]
[324857914,1714375834653,-500.0,0.00013698,2]
[324857915,1714375834663,-225.27217851,0.00013698,2]
[324857916,1714375834673,-163.86067727,0.00013698,2]
[324857917,1714375834682,-500.0,0.00013698,2]
[324857918,1714375834695,-500.0,0.00013698,2]
[324857919,1714375834704,-500.0,0.00013698,2]
[324857920,1714375834714,-419.87210846,0.00013698,2]
[324857921,1714375834724,-463.96459281,0.00013698,2]
[324857922,1714375834733,-290.20966861,0.00013698,2]
[324857923,1714375834743,-365.62677506,0.00013698,2]
[324857962,1714375838247,-134.37322494,0.00013698,2]
[324857964,1714375838256,-500.0,0.00013698,2]
[324857966,1714375838265,-500.0,0.00013698,2]
[324857968,1714375838275,-500.0,0.00013698,2]
[324857970,1714375838284,-500.0,0.00013698,2]
[324857972,1714375838294,-129.62430382,0.00013698,2]
[324858147,1714375845988,-370.37569618,0.00013698,2]
[324858148,1714375845997,-500.0,0.00013698,2]
[324858149,1714375846007,-500.0,0.00013698,2]
[324858151,1714375846017,-536.77358292,0.00013698,2]
[324858153,1714375846026,-525.22182693,0.00013698,2]
[324858155,1714375846036,-500.0,0.00013698,2]
[324858157,1714375846045,-500.0,0.00013698,2]
[324858159,1714375846055,-435.6600224,0.00013698,2]
[324858161,1714375846065,-500.0,0.00013698,2]
[324858163,1714375846074,-500.0,0.00013698,2]
[324858164,1714375846083,-500.0,0.00013698,2]
[324858166,1714375846092,-500.0,0.00013698,2]
[324858168,1714375846101,-500.0,0.00013698,2]
[324858170,1714375846112,-420.71126213,0.00013698,2]
[324858172,1714375846121,-500.0,0.00013698,2]
[324858174,1714375846131,-500.0,0.00013698,2]
[324858175,1714375846140,-500.0,0.00013698,2]
[324858176,1714375846149,-500.0,0.00013698,2]
[324858178,1714375846158,-500.0,0.00013698,2]
[324858180,1714375846168,-560.01797626,0.00013698,2]
[324858184,1714376153916,181.584,9.999e-05,2]
[324858186,1714376322262,2783.892,0.00025,60]
[324858187,1714376460999,154.78330338,9.999e-05,2]
[324858189,1714376634488,10000.0,0.000225,30]
[324858191,1714376739139,-154.78330338,0.00012721,2]
[324858192,1714376739159,-300.0,0.00012722,2]
[324858193,1714376739180,-223.0,0.00012722,2]
[324858194,1714376739200,-5381.11311669,0.00012723,2]
[324858195,1714376766729,10000.0,0.00025,60]
[324858196,1714376783917,10000.0,0.0001,2]
[324858197,1714376854116,-11054.7638517,0.00012501,2]
[324858198,1714376867549,10000.0,0.000266,120]
[324858199,1714376918283,10000.0,0.0001,2]
[324858200,1714376951093,-154.78330338,0.00012499,2]
[324858201,1714376951113,-300.0,0.000125,2]
[324858202,1714376951134,-13845.2361483,0.00012501,2]
[324858203,1714376951153,-154.82968734,0.00013011,2]
[324858204,1714376970128,-247.69764059,0.00013696,2]
[324858205,1714376970147,-154.78330338,0.00013696,2]
[324858206,1714376970166,-1710.64343611,0.00013697,2]
[324858207,1714376970186,-4852.35306537,0.00013697,2]
[324858208,1714376970205,-500.0,0.00013698,2]
[324858209,1714376970227,-500.0,0.00013698,2]
[324858210,1714376970247,-573.62268151,0.00013698,2]
[324858211,1714376970265,-500.01281628,0.00013698,2]
[324858212,1714376970286,-500.0,0.00013698,2]
[324858213,1714376970305,-500.0,0.00013698,2]
[324858214,1714376970325,-555.23,0.00013698,2]
[324858215,1714376970348,-156.37,0.00013698,2]
[324858216,1714376970367,-500.0,0.00013698,2]
[324858217,1714376970388,-500.0,0.00013698,2]
[324858218,1714376970407,-500.0,0.00013698,2]
[324858219,1714376970427,-500.0,0.00013698,2]
[324858220,1714376970447,-500.0,0.00013698,2]
[324858221,1714376970468,-500.0,0.00013698,2]
[324858222,1714376970487,-500.0,0.00013698,2]
[324858223,1714376970508,-500.0,0.00013698,2]
[324858224,1714376970528,-500.0,0.00013698,2]
[324858225,1714376970547,-500.0,0.00013698,2]
[324858226,1714376970566,-500.0,0.00013698,2]
[324858227,1714376970585,-500.0,0.00013698,2]
[324858228,1714376970605,-500.0,0.00013698,2]
[324858229,1714376970623,-500.0,0.00013698,2]
[324858230,1714376970642,-500.0,0.00013698,2]
[324858231,1714376970660,-500.0,0.00013698,2]
[324858232,1714376970679,-500.0,0.00013698,2]
[324858233,1714376970697,-500.0,0.00013698,2]
[324858234,1714376970716,-500.0,0.00013698,2]
[324858235,1714376970734,-500.0,0.00013698,2]
[324858236,1714376970753,-394.87380458,0.00013698,2]
[324858237,1714376970773,-500.0,0.00013698,2]
[324858238,1714376970792,-500.0,0.00013698,2]
[324858239,1714376970811,-500.90423701,0.00013698,2]
[324858240,1714376970829,-500.0,0.00013698,2]
[324858241,1714376970848,-500.0,0.00013698,2]
[324858242,1714376970868,-406.11895496,0.00013698,2]
[324858243,1714376970887,-501.1423942,0.00013698,2]
[324858244,1714376970907,-500.0,0.00013698,2]
[324858245,1714376970926,-500.0,0.00013698,2]
[324858246,1714376970947,-500.0,0.00013698,2]
[324858247,1714376970968,-500.0,0.00013698,2]
[324858248,1714376971104,-375.85116075,0.00013698,2]
[324858249,1714376971130,-500.0,0.00013698,2]
[324858250,1714376971151,-559.4,0.00013698,2]
[324858251,1714376971171,-500.0,0.00013698,2]
[324858252,1714376971193,-500.0,0.00013698,2]
[324858253,1714376971212,-500.0,0.00013698,2]
[324858254,1714376971233,-500.0,0.00013698,2]
[324858255,1714376971252,-500.0,0.00013698,2]
[324858256,1714376971270,-500.0,0.00013698,2]
[324858257,1714376971291,-500.0,0.00013698,2]
[324858258,1714376971310,-500.0,0.00013698,2]
[324858259,1714376971329,-500.0,0.00013698,2]
[324858260,1714376971347,-595.88290634,0.00013698,2]
[324858261,1714376971367,-500.0,0.00013698,2]
[324858262,1714376971388,-500.0,0.00013698,2]
[324858263,1714376971408,-509.01363689,0.00013698,2]
[324858264,1714376971428,-500.0,0.00013698,2]
[324858265,1714376971448,-500.0,0.00013698,2]
[324858266,1714376971470,-500.0,0.00013698,2]
[324858267,1714376971490,-500.0,0.00013698,2]
[324858268,1714376971509,-500.0,0.00013698,2]
[324858269,1714376971529,-623.44334963,0.00013698,2]
[324858270,1714376971550,-500.0,0.00013698,2]
[324858271,1714376971570,-500.0,0.00013698,2]
[324858272,1714376971590,-254.98552436,0.00013698,2]
[324858273,1714376971610,-500.0,0.00013698,2]
[324858274,1714376971630,-500.0,0.00013698,2]
[324858275,1714376971650,-500.0,0.00013698,2]
[324858276,1714376971671,-500.0,0.00013698,2]
[324858277,1714376971691,-520.1428564,0.00013698,2]
[324858278,1714376971714,-500.0,0.00013698,2]
[324858279,1714376971735,-500.0,0.00013698,2]
[324858280,1714376971754,-500.0,0.00013698,2]
[324858281,1714376971774,-500.0,0.00013698,2]
[324858282,1714376971793,-500.0,0.00013698,2]
[324858283,1714376971811,-500.0,0.00013698,2]
[324858284,1714376971831,-295.1,0.00013698,2]
[324858285,1714376971851,-500.0,0.00013698,2]
[324858286,1714376971875,-500.0,0.00013698,2]
[324858287,1714376971894,-500.0,0.00013698,2]
[324858288,1714376971913,-500.0,0.00013698,2]
[324858289,1714376971932,-263.46,0.00013698,2]
[324858290,1714376971951,-500.0,0.00013698,2]
[324858291,1714376971969,-500.0,0.00013698,2]
[324858292,1714376971986,-500.0,0.00013698,2]
[324858293,1714376972005,-500.0,0.00013698,2]
[324858294,1714376972023,-500.0,0.00013698,2]
[324858295,1714376972042,-500.0,0.00013698,2]
[324858296,1714376972062,-500.0,0.00013698,2]
[324858297,1714376972084,-500.0,0.00013698,2]
[324858298,1714376972102,-500.0,0.00013698,2]
[324858299,1714376972121,-605.44,0.00013698,2]
[324858300,1714376972139,-500.0,0.00013698,2]
[324858301,1714376972158,-500.0,0.00013698,2]
[324858302,1714376972176,-500.0,0.00013698,2]
[324858303,1714376972197,-500.0,0.00013698,2]
[324858304,1714376972219,-296.55230375,0.00013698,2]
[324858305,1714376972239,-500.0,0.00013698,2]
[324858306,1714376972258,-500.0,0.00013698,2]
[324858307,1714376972278,-500.0,0.00013698,2]
[324858308,1714376972297,-508.58016675,0.00013698,2]
[324858309,1714376972319,-500.0,0.00013698,2]
[324858310,1714376972337,-500.0,0.00013698,2]
[324858311,1714376972357,-500.0,0.00013698,2]
[324858312,1714376972375,-500.0,0.00013698,2]
[324858313,1714376972394,-500.0,0.00013698,2]
[324858314,1714376972413,-500.0,0.00013698,2]
[324858315,1714376972432,-500.0,0.00013698,2]
[324858316,1714376972452,-500.0,0.00013698,2]
[324858317,1714376972471,-500.0,0.00013698,2]
[324858318,1714376972490,-500.0,0.00013698,2]
[324858319,1714376972509,-510.39010806,0.00013698,2]
[324858320,1714376972528,-500.0,0.00013698,2]
[324858321,1714376972547,-500.0,0.00013698,2]
[324858322,1714376972566,-500.0,0.00013698,2]
[324858323,1714376972586,-500.0,0.00013698,2]
[324858324,1714376972606,-500.0,0.00013698,2]
[324858325,1714376972627,-619.42,0.00013698,2]
[324858326,1714376972648,-500.0,0.00013698,2]
[324858327,1714376972668,-500.0,0.00013698,2]
[324858328,1714376972688,-500.0,0.00013698,2]
[324858329,1714376972707,-500.0,0.00013698,2]
[324858330,1714376972726,-500.0,0.00013698,2]
[324858331,1714376972746,-500.0,0.00013698,2]
[324858332,1714376972765,-388.9637415,0.00013698,2]
[324858333,1714376972784,-535.26,0.00013698,2]
[324858334,1714376972804,-500.0,0.00013698,2]
[324858335,1714376972824,-500.0,0.00013698,2]
[324858336,1714376972843,-500.0,0.00013698,2]
[324858337,1714376972862,-500.0,0.00013698,2]
[324858338,1714376972881,-151.39258846,0.00013698,2]
[324858339,1714376972901,-500.0,0.00013698,2]
[324858340,1714376972920,-500.0,0.00013698,2]
[324858341,1714376972940,-500.0,0.00013698,2]
[324858342,1714376972958,-500.0,0.00013698,2]
[324858343,1714376972976,-500.0,0.00013698,2]
[324858344,1714376972995,-500.0,0.00013698,2]
[324858345,1714376973013,-500.0,0.00013698,2]
[324858346,1714376973032,-500.0,0.00013698,2]
[324858347,1714376973050,-500.0,0.00013698,2]
[324858348,1714376973070,-500.0,0.00013698,2]
[324858349,1714376973089,-500.0,0.00013698,2]
[324858350,1714376973109,-244.31566965,0.00013698,2]
[324858351,1714376973128,-500.0,0.00013698,2]
[324858352,1714376973147,-500.0,0.00013698,2]
[324858353,1714376973165,-500.0,0.00013698,2]
[324858354,1714376973187,-507.31,0.00013698,2]
[324858355,1714376973207,-500.0,0.00013698,2]
[324858356,1714376973227,-241.62911616,0.00013698,2]
[324858357,1714376973247,-500.0,0.00013698,2]
[324858358,1714376973267,-500.0,0.00013698,2]
[324858359,1714376973288,-500.0,0.00013698,2]
[324858360,1714376973307,-610.53,0.00013698,2]
[324858361,1714376973327,-500.0,0.00013698,2]
[324858362,1714376973346,-500.0,0.00013698,2]
[324858363,1714376973366,-500.0,0.00013698,2]
[324858364,1714376973385,-500.0,0.00013698,2]
[324858365,1714376973404,-500.0,0.00013698,2]
[324858366,1714376973424,-500.0,0.00013698,2]
[324858367,1714376973444,-500.0,0.00013698,2]
[324858368,1714376973462,-500.0,0.00013698,2]
[324858369,1714376973481,-500.0,0.00013698,2]
[324858370,1714376973500,-500.0,0.00013698,2]
[324858371,1714376973519,-500.0,0.00013698,2]
[324858372,1714376973538,-500.0,0.00013698,2]
[324858373,1714376973558,-544.13243988,0.00013698,2]
[324858374,1714376973578,-500.0,0.00013698,2]
[324858375,1714376973596,-500.0,0.00013698,2]
[324858376,1714376973616,-500.0,0.00013698,2]
[324858377,1714376973635,-500.0,0.00013698,2]
[324858378,1714376973653,-500.0,0.00013698,2]
[324858379,1714376973673,-500.0,0.00013698,2]
[324858380,1714376973692,-500.0,0.00013698,2]
[324858381,1714376973712,-500.0,0.00013698,2]
[324858382,1714376973732,-500.0,0.00013698,2]
[324858383,1714376973753,-1309.91,0.00013698,2]
[324858384,1714376973773,-500.0,0.00013698,2]
[324858385,1714376973792,-511.29597624,0.00013698,2]
[324858386,1714376973812,-500.0,0.00013698,2]
[324858387,1714376973833,-500.0,0.00013698,2]
[324858388,1714376973854,-500.0,0.00013698,2]
[324858389,1714376973874,-508.01,0.00013698,2]
[324858390,1714376973894,-505.05524063,0.00013698,2]
[324858391,1714376973914,-500.0,0.00013698,2]
[324858392,1714376973935,-500.0,0.00013698,2]
[324858393,1714376973955,-500.0,0.00013698,2]
[324858394,1714376973974,-500.0,0.00013698,2]
[324858395,1714376973993,-227.0400784,0.00013698,2]
[324858396,1714376974014,-500.0,0.00013698,2]
[324858397,1714376974032,-500.0,0.00013698,2]
[324858398,1714376974157,-393.74933861,0.00013698,2]
[324858399,1714376974178,-636.83,0.00013698,2]
[324858400,1714376974199,-500.0,0.00013698,2]
[324858401,1714376974222,-500.0,0.00013698,2]
[324858402,1714376974241,-500.0,0.00013698,2]
[324858403,1714376974261,-500.0,0.00013698,2]
[324858404,1714376974281,-297.25751215,0.00013698,2]
[324858405,1714376974301,-500.0,0.00013698,2]
[324858406,1714376974323,-500.0,0.00013698,2]
[324858407,1714376974342,-500.0,0.00013698,2]
[324858408,1714376974361,-500.0,0.00013698,2]
[324858409,1714376974380,-494.17988793,0.00013698,2]
[324858410,1714376974401,-500.0,0.00013698,2]
[324858411,1714376974420,-500.0,0.00013698,2]
[324858412,1714376974440,-500.0,0.00013698,2]
[324858413,1714376974462,-604.80631323,0.00013698,2]
[324858414,1714376974481,-500.0,0.00013698,2]
[324858415,1714376974500,-504.92859146,0.00013698,2]
[324858416,1714376974520,-523.93,0.00013698,2]
[324858417,1714376974539,-500.0,0.00013698,2]
[324858418,1714376974560,-322.07851111,0.00013698,2]
[324858419,1714376974580,-500.0,0.00013698,2]
[324858420,1714376974600,-500.0,0.00013698,2]
[324858421,1714376974620,-500.0,0.00013698,2]
[324858422,1714376974640,-500.0,0.00013698,2]
[324858423,1714376974660,-503.83484402,0.00013698,2]
[324858424,1714376974679,-248.90519616,0.00013698,2]
[324858425,1714376974699,-603.72085347,0.00013698,2]
[324858426,1714376974720,-417.87972982,0.00013698,2]
[324858453,1714377031986,-300.0,0.00013697,2]
[324858454,1714377031996,-82.12027018,0.00013698,2]
[324858455,1714377032005,-500.0,0.00013698,2]
[324858456,1714377032014,-589.49371824,0.00013698,2]
[324858457,1714377032023,-500.0,0.00013698,2]
[324858458,1714377032032,-500.0,0.00013698,2]
[324858459,1714377032041,-500.0,0.00013698,2]
[324858460,1714377032050,-500.0,0.00013698,2]
[324858461,1714377032059,-500.0,0.00013698,2]
[324858462,1714377032068,-500.0,0.00013698,2]
[324858463,1714377032078,-365.32660419,0.00013698,2]
[324858464,1714377032087,-500.0,0.00013698,2]
[324858465,1714377032095,-500.0,0.00013698,2]
[324858466,1714377032104,-500.0,0.00013698,2]
[324858467,1714377032114,-307.84023691,0.00013698,2]
[324858468,1714377032123,-500.0,0.00013698,2]
[324858469,1714377032135,-440.89782642,0.00013698,2]
[324858470,1714377032145,-500.0,0.00013698,2]
[324858471,1714377032156,-500.0,0.00013698,2]
[324858472,1714377032166,-500.0,0.00013698,2]
[324858473,1714377032175,-500.0,0.00013698,2]
[324858474,1714377032184,-252.47588855,0.00013698,2]
[324858475,1714377032192,-500.0,0.00013698,2]
[324858476,1714377032204,-500.0,0.00013698,2]
[324858477,1714377032213,-1228.407801,0.00013699,2]
[324858478,1714377032226,-166.666666,0.00013699,2]
[324858479,1714377032235,-730.61014924,0.00013814,2]
[324858480,1714377032245,-510.31415295,0.00013815,2]
[324858481,1714377032254,-529.7028294,0.00013815,2]
[324858482,1714377032263,-213.01228044,0.00013815,2]
[324858483,1714377032272,-454.12721237,0.00013815,2]
[324858484,1714377032281,-392.78298304,0.00013872,2]
[324858485,1714377032292,-980.47269986,0.0001397,2]
[324858486,1714377032301,-550.56357256,0.0001397,2]
[324858487,1714377032311,-208.08278648,0.00013971,2]
[324858488,1714377032320,-5260.97980022,0.00013971,2]
[324858489,1714377032331,-500.0,0.00013972,2]
[324858490,1714377032342,-201.06,0.00013972,2]
[324858491,1714377032354,-161.21,0.00013972,2]
[324858492,1714377032365,-500.0,0.00013972,2]
[324858493,1714377032377,-352.18046222,0.00013972,2]
[324858494,1714377032389,-427.23970172,0.00013972,2]
[324858495,1714377032400,-500.0,0.00013972,2]
[324858496,1714377032411,-500.0,0.00013972,2]
[324858497,1714377032421,-500.0,0.00013972,2]
[324858498,1714377032432,-557.95180536,0.00013972,2]
[324858499,1714377032442,-500.0,0.00013972,2]
[324858500,1714377032454,-500.0,0.00013972,2]
[324858501,1714377032465,-500.0,0.00013972,2]
[324858502,1714377032476,-308.74394132,0.00013972,2]
[324858503,1714377032487,-500.0,0.00013972,2]
[324858504,1714377032498,-500.0,0.00013972,2]
[324858505,1714377032509,-500.0,0.00013972,2]
[324858506,1714377032520,-500.0,0.00013972,2]
[324858507,1714377032531,-500.0,0.00013972,2]
[324858508,1714377032542,-500.0,0.00013972,2]
[324858509,1714377032553,-298.00235401,0.00013972,2]
[324858510,1714377032564,-500.0,0.00013972,2]
[324858511,1714377032575,-476.63091983,0.00013972,2]
[324858512,1714377032586,-500.0,0.00013972,2]
[324858513,1714377032598,-500.0,0.00013972,2]
[324858514,1714377032610,-273.61,0.00013972,2]
[324858515,1714377032621,-500.0,0.00013972,2]
[324858516,1714377032632,-544.31905979,0.00013972,2]
[324858517,1714377032643,-189.64,0.00013972,2]
[324858518,1714377032654,-500.0,0.00013972,2]
[324858519,1714377032665,-500.0,0.00013972,2]
[324858520,1714377032675,-500.0,0.00013972,2]
[324858521,1714377032686,-500.0,0.00013972,2]
[324858522,1714377032697,-500.0,0.00013972,2]
[324858523,1714377032708,-500.0,0.00013972,2]
[324858524,1714377032719,-500.0,0.00013972,2]
[324858525,1714377032730,-645.80299715,0.00013972,2]
[324858526,1714377032741,-500.0,0.00013972,2]
[324858527,1714377032752,-190.63,0.00013972,2]
[324858528,1714377032762,-500.0,0.00013972,2]
[324858529,1714377032773,-500.0,0.00013972,2]
[324858530,1714377032784,-500.0,0.00013972,2]
[324858531,1714377032794,-500.0,0.00013972,2]
[324858532,1714377032804,-500.0,0.00013972,2]
[324858533,1714377032814,-500.0,0.00013972,2]
[324858534,1714377032823,-421.3,0.00013972,2]
[324858535,1714377032833,-211.73,0.00013972,2]
[324858536,1714377032844,-185.86,0.00013972,2]
[324858537,1714377032855,-498.22,0.00013972,2]
[324858538,1714377032864,-360.38,0.00013972,2]
[324858539,1714377032874,-500.0,0.00013972,2]
[324858540,1714377032884,-500.0,0.00013972,2]
[324858541,1714377032894,-500.0,0.00013972,2]
[324858542,1714377032905,-500.0,0.00013972,2]
[324858543,1714377032915,-500.0,0.00013972,2]
[324858544,1714377032926,-500.0,0.00013972,2]
[324858545,1714377032936,-636.83,0.00013972,2]
[324858546,1714377032946,-500.0,0.00013972,2]
[324858547,1714377032956,-500.0,0.00013972,2]
[324858548,1714377032967,-272.44087412,0.00013972,2]
[324858549,1714377032977,-176.69909151,0.00013972,2]
[324858550,1714377032988,-500.0,0.00013972,2]
[324858551,1714377032999,-500.0,0.00013972,2]
[324858552,1714377033011,-344.48191349,0.00013972,2]
[324858553,1714377033022,-500.0,0.00013972,2]
[324858554,1714377033034,-409.85939663,0.00013972,2]
[324858555,1714377033045,-500.0,0.00013972,2]
[324858556,1714377033055,-444.21961362,0.00013972,2]
[324858557,1714377033066,-500.0,0.00013972,2]
[324858558,1714377033076,-523.93,0.00013972,2]
[324858559,1714377033089,-500.0,0.00013972,2]
[324858560,1714377033100,-500.0,0.00013972,2]
[324858561,1714377033111,-500.0,0.00013972,2]
[324858562,1714377033122,-262.71710429,0.00013972,2]
[324858563,1714377033133,-205.13963576,0.00013972,2]
[324858564,1714377033144,-303.46693109,0.00013972,2]
[324858565,1714377033154,-390.20709668,0.00013972,2]
[324858566,1714377033164,-500.0,0.00013972,2]
[324858567,1714377033175,-500.0,0.00013972,2]
[324858568,1714377033186,-188.05504214,0.00013972,2]
[324858569,1714377033202,-126.98794156,0.00013972,2]
[324858570,1714377033217,-199.93780844,0.00013972,2]
[324858571,1714377033229,-254.67202196,0.00013972,2]
[324858572,1714377033241,-45.3901696,0.00013972,2]
[324858573,1714377033251,-338.4096596,0.00013972,2]
[324858574,1714377033263,-161.5903404,0.00013972,2]
[324858575,1714377033273,-500.0,0.00013972,2]
[324858576,1714377033283,-545.16914352,0.00013972,2]
[324858577,1714377033293,-500.0,0.00013972,2]
[324858578,1714377033306,-1782.26563595,0.00014,2]
[324858579,1714377033316,-209.79588522,0.00014244,2]
[324858580,1714377033326,-155.29615238,0.00014245,2]
[324858581,1714377033335,-500.0,0.00014246,2]
[324858582,1714377033345,-64.09706889,0.00014246,2]
[324858606,1714377038098,-1255.33,0.00013698,2]
[324858608,1714377038107,-500.0,0.00013698,2]
[324858610,1714377038117,-500.0,0.00013972,2]
[324858612,1714377038126,-1255.33,0.00013972,2]
[324858614,1714377038135,-435.90293111,0.00014246,2]
[324858616,1714377038144,-500.0,0.00014246,2]
[324858618,1714377038153,-500.0,0.00014246,2]
[324858620,1714377038163,-500.0,0.00014246,2]
[324858622,1714377038190,-500.0,0.00014246,2]
[324858624,1714377038199,-500.0,0.00014246,2]
[324858625,1714377038209,-500.0,0.00014246,2]
[324858627,1714377038222,-500.0,0.00014246,2]
[324858630,1714377038232,-500.0,0.00014246,2]
[324858632,1714377038241,-500.0,0.00014246,2]
[324858634,1714377038251,-500.0,0.00014246,2]
[324858635,1714377038259,-257.92241403,0.00014246,2]
[324858637,1714377038269,-500.0,0.00014246,2]
[324858639,1714377038278,-500.0,0.00014246,2]
[324858641,1714377038289,-500.0,0.00014246,2]
[324858644,1714377038299,-500.0,0.00014246,2]
[324858646,1714377038309,-500.0,0.00014246,2]
[324858648,1714377038318,-500.0,0.00014246,2]
[324858650,1714377038327,-500.0,0.00014246,2]
[324858652,1714377038337,-500.0,0.00014246,2]
[324858654,1714377038346,-500.0,0.00014246,2]
[324858656,1714377038356,-500.0,0.00014246,2]
[324858658,1714377038365,-500.0,0.00014246,2]
[324858660,1714377038374,-500.0,0.00014246,2]
[324858662,1714377038384,-500.0,0.00014246,2]
[324858664,1714377038393,-500.0,0.00014246,2]
[324858666,1714377038403,-500.0,0.00014246,2]
[324858668,1714377038412,-636.83,0.00014246,2]
[324858669,1714377038422,-388.89274649,0.00014246,2]
[324858672,1714377038431,-500.0,0.00014246,2]
[324858674,1714377038441,-500.0,0.00014246,2]
[324858675,1714377038450,-500.0,0.00014246,2]
[324858677,1714377038459,-500.0,0.00014246,2]
[324858680,1714377038468,-632.22930483,0.00014246,2]
[324858682,1714377038478,-382.69583035,0.00014246,2]
[324858684,1714377038487,-523.93,0.00014246,2]
[324858686,1714377038496,-251.21665386,0.00014246,2]
[324858688,1714377038506,-500.0,0.00014246,2]
[324858690,1714377038515,-500.0,0.00014246,2]
[324858691,1714377038524,-500.0,0.00014246,2]
[324858693,1714377038533,-500.0,0.00014246,2]
[324858696,1714377038543,-500.0,0.00014246,2]
[324858698,1714377038552,-500.0,0.00014246,2]
[324858700,1714377038561,-500.0,0.00014246,2]
[324858702,1714377038571,-1255.33,0.00014246,2]
[324858704,1714377038580,-417.0,0.0001438,2]
[324858706,1714377038590,-150.0,0.0001438,2]
[324858708,1714377038599,-150.0,0.0001438,2]
[324858710,1714377038608,-38007.39011933,0.0001442,2]
[324858726,1714377038765,-673.20726618,0.0001442,2]
[324858728,1714377038776,-3292.19530239,0.0001442,2]
[324858730,1714377038785,-5000.0,0.000145,2]
[324858732,1714377038794,-500.0,0.0001452,2]
[324858734,1714377038803,-500.0,0.0001452,2]
[324858736,1714377038812,-500.0,0.0001452,2]
[324858738,1714377038821,-555.17433222,0.0001452,2]
[324858740,1714377038830,-500.0,0.0001452,2]
[324858742,1714377038842,-500.0,0.0001452,2]
[324858744,1714377038851,-295.38719371,0.0001452,2]
[324858746,1714377038861,-378.91160299,0.0001452,2]
[324858748,1714377038870,-500.0,0.0001452,2]
[324858750,1714377038879,-500.0,0.0001452,2]
[324858752,1714377038889,-617.72766475,0.0001452,2]
[324858754,1714377038898,-500.0,0.0001452,2]
[324858756,1714377038907,-245.88982896,0.0001452,2]
[324858758,1714377038917,-500.0,0.0001452,2]
[324858760,1714377038926,-500.0,0.0001452,2]
[324858762,1714377038935,-500.0,0.0001452,2]
[324858764,1714377038944,-500.0,0.0001452,2]
[324858766,1714377038954,-500.0,0.0001452,2]
[324858768,1714377038963,-500.0,0.0001452,2]
[324858770,1714377038972,-192.08826231,0.0001452,2]
[324858772,1714377038981,-426.06591662,0.0001452,2]
[324858774,1714377038990,-500.0,0.0001452,2]
[324858776,1714377038999,-489.95013615,0.0001452,2]
[324858778,1714377039008,-180.05006329,0.0001452,2]
[324858781,1714377039025,-260.4449991,0.0001452,2]